fUSD/lending_fUSD_20250125
["ID","MTS","AMOUNT","RATE_DAILY","PERIOD"]
[350354396,1737809451370,-500.0,0.00017533,2]
[350354397,1737809451380,-500.0,0.00017533,2]
[350354398,1737809451391,-500.0,0.00017533,2]
[350354399,1737809451401,-500.0,0.00017533,2]
[350354400,1737809451412,-500.0,0.00017533,2]
[350354401,1737809451422,-500.0,0.00017533,2]
[350354402,1737809451433,-500.0,0.00017533,2]
[350354403,1737809451443,-500.0,0.00017533,2]
[350354404,1737809451454,-500.0,0.00017533,2]
[350354405,1737809451465,-500.0,0.00017533,2]
[350354406,1737809451476,-500.0,0.00017533,2]
[350354407,1737809451486,-500.0,0.00017533,2]
[350354408,1737809451497,-500.0,0.00017533,2]
[350354409,1737809451507,-500.0,0.00017533,2]
[350354410,1737809451520,-500.0,0.00017533,2]
[350354411,1737809451531,-500.0,0.00017533,2]
[350354412,1737809451542,-556.68,0.00017533,2]
[350354413,1737809451553,-500.0,0.00017533,2]
[350354414,1737809451565,-500.0,0.00017533,2]
[350354415,1737809451576,-500.0,0.00017533,2]
[350354416,1737809451587,-996.27,0.00017533,2]
[350354417,1737809451598,-500.0,0.00017533,2]
[350354418,1737809451609,-866.87,0.00017533,2]
[350354419,1737809451621,-500.0,0.00017533,2]
[350354420,1737809451632,-500.0,0.00017533,2]
[350354421,1737809451643,-297.44,0.00017533,2]
[350354422,1737809451654,-500.0,0.00017533,2]
[350354423,1737809451665,-507.68372556,0.00017533,2]
[350354424,1737809451676,-500.0,0.00017533,2]
[350354425,1737809451686,-500.0,0.00017533,2]
[350354426,1737809451696,-500.0,0.00017533,2]
[350354427,1737809451707,-500.0,0.00017533,2]
[350354428,1737809451718,-500.0,0.00017533,2]
[350354429,1737809451729,-837.75,0.00017533,2]
[350354430,1737809451740,-500.0,0.00017533,2]
[350354431,1737809451750,-500.0,0.00017533,2]
[350354432,1737809451761,-1042.53,0.00017533,2]
[350354433,1737809451771,-500.0,0.00017533,2]
[350354434,1737809451781,-500.0,0.00017533,2]
[350354435,1737809451792,-500.0,0.00017533,2]
[350354436,1737809451803,-510.5,0.00017533,2]
[350354437,1737809451813,-500.0,0.00017533,2]
[350354438,1737809451824,-537.34,0.00017533,2]
[350354439,1737809451835,-500.0,0.00017533,2]
[350354440,1737809451845,-500.0,0.00017533,2]
[350354441,1737809451855,-500.0,0.00017533,2]
[350354442,1737809451864,-500.0,0.00017533,2]
[350354443,1737809451874,-160.15,0.00017533,2]
[350354444,1737809451883,-500.0,0.00017533,2]
[350354445,1737809451893,-500.0,0.00017533,2]
[350354446,1737809451903,-500.0,0.00017533,2]
[350354447,1737809451912,-500.0,0.00017533,2]
[350354448,1737809451922,-500.0,0.00017533,2]
[350354449,1737809451931,-617.56,0.00017533,2]
[350354450,1737809451941,-521.09,0.00017533,2]
[350354451,1737809451950,-976.15,0.00017533,2]
[350354452,1737809451960,-500.0,0.00017533,2]
[350354453,1737809451970,-500.0,0.00017534,2]
[350354454,1737809451979,-500.0,0.00017534,2]
[350354455,1737809451988,-500.0,0.00017534,2]
[350354456,1737809451998,-500.0,0.00017534,2]
[350354457,1737809452007,-155.0,0.00017555,2]
[350354458,1737809452016,-1577.60978743,0.00017564,2]
[350354459,1737809452025,-208.12307939,0.00017582,2]
[350354460,1737809452035,-500.0,0.00017669,2]
[350354461,1737809452044,-500.0,0.00017669,2]
[350354462,1737809452054,-500.0,0.00017669,2]
[350354463,1737809452063,-500.0,0.00017669,2]
[350354464,1737809452073,-500.0,0.00017669,2]
[350354465,1737809452082,-500.0,0.00017669,2]
[350354466,1737809452091,-500.0,0.00017669,2]
[350354467,1737809452100,-500.0,0.00017669,2]
[350354468,1737809452110,-500.0,0.00017669,2]
[350354469,1737809452119,-604.04,0.00017669,2]
[350354470,1737809452128,-755.37,0.00017669,2]
[350354471,1737809452137,-500.0,0.00017669,2]
[350354472,1737809452147,-500.0,0.00017669,2]
[350354473,1737809452157,-500.0,0.00017669,2]
[350354474,1737809452166,-635.66,0.00017669,2]
[350354475,1737809452175,-500.0,0.0001767,2]
[350354476,1737809452186,-500.0,0.0001767,2]
[350354477,1737809452196,-500.0,0.0001767,2]
[350354478,1737809452205,-500.0,0.0001767,2]
[350354479,1737809452214,-500.0,0.0001767,2]
[350354480,1737809452223,-161.17899576,0.0001767,2]
[350354481,1737809452232,-500.0,0.0001767,2]
[350354482,1737809452242,-500.0,0.0001767,2]
[350354483,1737809452251,-500.0,0.0001767,2]
[350354484,1737809452261,-500.0,0.0001767,2]
[350354485,1737809452272,-500.0,0.0001767,2]
[350354486,1737809452283,-500.0,0.0001767,2]
[350354487,1737809452294,-500.0,0.0001767,2]
[350354488,1737809452567,-500.0,0.0001767,2]
[350354489,1737809452577,-500.0,0.0001767,2]
[350354490,1737809452587,-500.0,0.0001767,2]
[350354491,1737809452598,-500.0,0.0001767,2]
[350354492,1737809452607,-500.0,0.0001767,2]
[350354493,1737809452617,-500.0,0.0001767,2]
[350354494,1737809452626,-500.0,0.0001767,2]
[350354495,1737809452635,-500.0,0.0001767,2]
[350354496,1737809452644,-500.0,0.0001767,2]
[350354497,1737809452653,-500.0,0.0001767,2]
[350354498,1737809452662,-500.0,0.0001767,2]
[350354499,1737809452672,-562.86,0.0001767,2]
[350354500,1737809452681,-996.27,0.0001767,2]
[350354501,1737809452691,-510.09750888,0.0001767,2]
[350354502,1737809452701,-866.87,0.0001767,2]
[350354503,1737809452711,-500.0,0.0001767,2]
[350354504,1737809452720,-544.56,0.0001767,2]
[350354505,1737809452730,-500.0,0.0001767,2]
[350354506,1737809452740,-500.0,0.0001767,2]
[350354507,1737809452749,-423.25,0.0001767,2]
[350354508,1737809452758,-500.0,0.0001767,2]
[350354509,1737809452767,-500.0,0.0001767,2]
[350354510,1737809452777,-500.0,0.0001767,2]
[350354511,1737809452786,-837.75,0.0001767,2]
[350354512,1737809452795,-500.0,0.0001767,2]
[350354513,1737809452804,-500.0,0.0001767,2]
[350354514,1737809452813,-1042.53,0.0001767,2]
[350354515,1737809452822,-628.61,0.0001767,2]
[350354516,1737809452831,-500.0,0.0001767,2]
[350354517,1737809452840,-500.0,0.0001767,2]
[350354518,1737809452849,-510.5,0.0001767,2]
[350354519,1737809452858,-500.0,0.0001767,2]
[350354520,1737809452868,-537.34,0.0001767,2]
[350354521,1737809452877,-500.0,0.0001767,2]
[350354522,1737809452887,-500.0,0.0001767,2]
[350354523,1737809452897,-378.79695415,0.0001767,2]
[350354524,1737809452907,-500.0,0.0001767,2]
[350354525,1737809452915,-500.0,0.0001767,2]
[350354526,1737809452925,-500.0,0.0001767,2]
[350354527,1737809452935,-500.0,0.0001767,2]
[350354528,1737809452944,-500.0,0.0001767,2]
[350354529,1737809452953,-500.0,0.0001767,2]
[350354530,1737809452962,-617.56,0.0001767,2]
[350354531,1737809452972,-521.09,0.0001767,2]
[350354532,1737809452981,-976.15,0.0001767,2]
[350354533,1737809452991,-500.0,0.0001767,2]
[350354534,1737809453000,-631.74,0.00017671,2]
[350354535,1737809453010,-500.0,0.00017671,2]
[350354536,1737809453020,-500.0,0.00017671,2]
[350354537,1737809453029,-500.0,0.00017671,2]
[350354538,1737809453038,-500.0,0.00017806,2]
[350354539,1737809453047,-500.0,0.00017806,2]
[350354540,1737809453056,-500.0,0.00017806,2]
[350354541,1737809453066,-500.0,0.00017806,2]
[350354542,1737809453076,-500.0,0.00017806,2]
[350354543,1737809453085,-500.0,0.00017806,2]
[350354544,1737809453094,-500.0,0.00017806,2]
[350354545,1737809453103,-500.0,0.00017806,2]
[350354546,1737809453112,-500.0,0.00017806,2]
[350354547,1737809453122,-604.04,0.00017806,2]
[350354548,1737809453130,-755.37,0.00017806,2]
[350354549,1737809453139,-500.0,0.00017806,2]
[350354550,1737809453148,-500.0,0.00017806,2]
[350354551,1737809453157,-500.0,0.00017806,2]
[350354552,1737809453166,-635.66,0.00017806,2]
[350354553,1737809453176,-500.0,0.00017807,2]
[350354554,1737809453185,-500.0,0.00017807,2]
[350354555,1737809453194,-500.0,0.00017807,2]
[350354556,1737809453203,-500.0,0.00017807,2]
[350354557,1737809453212,-500.0,0.00017807,2]
[350354558,1737809453220,-500.0,0.00017807,2]
[350354559,1737809453231,-500.0,0.00017807,2]
[350354560,1737809453240,-500.0,0.00017807,2]
[350354561,1737809453248,-500.0,0.00017807,2]
[350354562,1737809453258,-500.0,0.00017807,2]
[350354563,1737809453266,-500.0,0.00017807,2]
[350354564,1737809453275,-500.0,0.00017807,2]
[350354565,1737809453284,-500.0,0.00017807,2]
[350354566,1737809453293,-500.0,0.00017807,2]
[350354567,1737809453302,-500.0,0.00017807,2]
[350354568,1737809453311,-500.0,0.00017807,2]
[350354569,1737809453321,-500.0,0.00017807,2]
[350354570,1737809453330,-500.0,0.00017807,2]
[350354571,1737809453340,-275.83,0.00017807,2]
[350354572,1737809453349,-500.0,0.00017807,2]
[350354573,1737809453358,-500.0,0.00017807,2]
[350354574,1737809453367,-500.0,0.00017807,2]
[350354575,1737809453376,-996.27,0.00017807,2]
[350354576,1737809453387,-866.87,0.00017807,2]
[350354577,1737809453396,-500.0,0.00017807,2]
[350354578,1737809453407,-500.0,0.00017807,2]
[350354579,1737809453419,-500.0,0.00017807,2]
[350354580,1737809453428,-500.0,0.00017807,2]
[350354581,1737809453437,-500.0,0.00017807,2]
[350354582,1737809453446,-500.0,0.00017807,2]
[350354583,1737809453455,-837.75,0.00017807,2]
[350354584,1737809453464,-500.0,0.00017807,2]
[350354585,1737809453474,-500.0,0.00017807,2]
[350354586,1737809453484,-1042.53,0.00017807,2]
[350354587,1737809453494,-370.96873101,0.00017807,2]
[350354588,1737809453503,-500.0,0.00017807,2]
[350354589,1737809453513,-510.5,0.00017807,2]
[350354590,1737809453526,-500.0,0.00017807,2]
[350354591,1737809453536,-537.34,0.00017807,2]
[350354592,1737809453546,-500.0,0.00017807,2]
[350354593,1737809453555,-500.0,0.00017807,2]
[350354594,1737809453567,-500.0,0.00017807,2]
[350354595,1737809453577,-500.0,0.00017807,2]
[350354596,1737809453587,-500.0,0.00017807,2]
[350354597,1737809453598,-500.0,0.00017807,2]
[350354598,1737809453607,-500.0,0.00017807,2]
[350354599,1737809453617,-617.56,0.00017807,2]
[350354600,1737809453626,-521.09,0.00017807,2]
[350354601,1737809453636,-976.15,0.00017807,2]
[350354602,1737809453645,-500.0,0.00017807,2]
[350354603,1737809453655,-500.0,0.00017808,2]
[350354604,1737809453664,-500.0,0.00017808,2]
[350354605,1737809453673,-500.0,0.00017808,2]
[350354606,1737809453682,-208.12307939,0.00017809,2]
[350354607,1737809453692,-356.91128259,0.00017844,2]
[350354608,1737809453701,-5423.01709752,0.00017859,2]
[350354609,1737809453711,-500.0,0.00017943,2]
[350354610,1737809453720,-500.0,0.00017943,2]
[350354611,1737809453730,-500.0,0.00017943,2]
[350354612,1737809453739,-608.97726,0.00017943,2]
[350354613,1737809453748,-500.0,0.00017943,2]
[350354614,1737809453758,-500.0,0.00017943,2]
[350354615,1737809453767,-370.25,0.00017943,2]
[350354616,1737809453776,-500.0,0.00017943,2]
[350354617,1737809453785,-500.0,0.00017943,2]
[350354618,1737809453794,-604.04,0.00017943,2]
[350354619,1737809453803,-755.37,0.00017943,2]
[350354620,1737809453814,-500.0,0.00017943,2]
[350354621,1737809453823,-500.0,0.00017943,2]
[350354622,1737809453832,-500.0,0.00017943,2]
[350354623,1737809453842,-635.66,0.00017943,2]
[350354624,1737809453851,-319.52,0.00017944,2]
[350354625,1737809453860,-500.0,0.00017944,2]
[350354626,1737809453869,-419.30167514,0.00017944,2]
[350354627,1737809453888,-80.69832486,0.00017944,2]
[350354628,1737809453899,-490.18209238,0.00017944,2]
[350354629,1737809453910,-9.81790762,0.00017944,2]
[350354630,1737809453919,-319.97792918,0.00017944,2]
[350354639,1737810224133,150.06,0.00016658,30]
[350354660,1737810632099,-150.65,0.00010137,2]
[350354661,1737810632110,-172.23,0.00012158,2]
[350354662,1737810632120,-179.66,0.00012329,2]
[350354663,1737810632130,-1757.0,0.00013,5]
[350354664,1737810632139,-500.0,0.00013233,2]
[350354665,1737810632149,-533.68311421,0.00014028,2]
[350354666,1737810632161,-131.8569857,0.00014028,2]
[350354667,1737810632171,-250.0,0.00014029,2]
[350354668,1737810632180,-269.5839756,0.00014092,2]
[350354669,1737810632358,-502.4290387,0.00014204,2]
[350354670,1737810632374,-821.9709613,0.00014204,2]
[350354671,1737810632384,-220.280536,0.00014925,2]
[350354672,1737810632394,-550.0,0.00015,2]
[350354673,1737810632403,-322.53777405,0.00015138,2]
[350354674,1737810632426,-11987.6,0.00015138,2]
[350354675,1737810632442,-500.04139326,0.00015138,2]
[350354676,1737810632454,-356.15532581,0.00015138,2]
[350354677,1737810632465,-1148.94,0.00015138,2]
[350354678,1737810632476,-9584.72550688,0.00015138,2]
[350354679,1737810632486,-269.58397558,0.00015165,2]
[350354680,1737810632496,-200.0,0.00015207,2]
[350354681,1737810632506,-734.76,0.00015248,2]
[350354682,1737810632515,-895.27415273,0.0001531,2]
[350354683,1737810632524,-907.61,0.00015331,2]
[350354684,1737810632534,-1500.0,0.00015356,2]
[350354685,1737810632543,-10325.07,0.00015409,2]
[350354686,1737810632552,-235.7,0.0001541,2]
[350354687,1737810632562,-411.65,0.00015422,2]
[350354689,1737810632571,-250.0,0.00015423,2]
[350354690,1737810632581,-162.73,0.00015449,2]
[350354691,1737810632591,-250.0,0.00015465,2]
[350354692,1737810632601,-174.12,0.00015508,2]
[350354693,1737810632611,-2751.0,0.00015539,2]
[350354694,1737810632620,-250.0,0.00015585,2]
[350354695,1737810632630,-4791.62,0.00015591,2]
[350354696,1737810632639,-168.74,0.00015629,2]
[350354697,1737810632648,-916.08,0.00015651,2]
[350354698,1737810632658,-150.0,0.00015683,2]
[350354699,1737810632667,-164.74,0.00015683,2]
[350354701,1737810632676,-2756.74,0.000157,2]
[350354702,1737810632685,-1843.69,0.00015729,2]
[350354704,1737810632695,-292.18,0.00015744,2]
[350354706,1737810632704,-1025.19,0.00015762,2]
[350354708,1737810632714,-1070.28,0.00015762,2]
[350354710,1737810632723,-1000.0,0.00015807,2]
[350354712,1737810632733,-177.79,0.00015874,2]
[350354714,1737810632742,-500.0,0.00015989,2]
[350354716,1737810632751,-179.66,0.00016096,2]
[350354718,1737810632762,-269.58397558,0.00016238,2]
[350354720,1737810632771,-24866.0,0.00016303,2]
[350354722,1737810632780,-1949.1501,0.00016338,2]
[350354724,1737810632790,-1324.4,0.00016468,2]
[350354726,1737810632799,-500.0,0.00016573,2]
[350354728,1737810632809,-500.0,0.00016573,2]
[350354730,1737810632818,-500.0,0.00016573,2]
[350354732,1737810632827,-500.0,0.00016574,2]
[350354734,1737810632836,-500.0,0.00016574,2]
[350354736,1737810632846,-500.0,0.00016574,2]
[350354738,1737810632855,-500.0,0.00016574,2]
[350354740,1737810632865,-515.08856061,0.00016574,2]
[350354742,1737810632874,-500.0,0.00016574,2]
[350354744,1737810632884,-500.0,0.00016574,2]
[350354746,1737810632893,-500.0,0.00016574,2]
[350354748,1737810632903,-500.0,0.00016574,2]
[350354750,1737810632912,-500.0,0.00016574,2]
[350354752,1737810632922,-500.0,0.00016574,2]
[350354754,1737810632931,-500.0,0.00016574,2]
[350354755,1737810632941,-500.0,0.00016574,2]
[350354758,1737810632950,-500.0,0.00016574,2]
[350354759,1737810632959,-500.0,0.00016574,2]
[350354762,1737810632969,-500.0,0.00016574,2]
[350354763,1737810632979,-500.0,0.00016574,2]
[350354764,1737810632987,-500.0,0.00016574,2]
[350354765,1737810632997,-511.80459735,0.00016574,2]
[350354766,1737810633006,-300.0,0.00016574,2]
[350354767,1737810633015,-500.0,0.00016574,2]
[350354768,1737810633024,-500.0,0.00016574,2]
[350354769,1737810633033,-500.0,0.00016574,2]
[350354770,1737810633043,-505.53869558,0.00016574,2]
[350354771,1737810633052,-500.0,0.00016574,2]
[350354772,1737810633061,-500.0,0.00016574,2]
[350354773,1737810633070,-500.0,0.00016574,2]
[350354774,1737810633083,-500.0,0.00016574,2]
[350354775,1737810633092,-605.76959962,0.00016574,2]
[350354776,1737810633102,-500.0,0.00016574,2]
[350354777,1737810633111,-500.0,0.00016574,2]
[350354778,1737810633121,-500.0,0.00016574,2]
[350354779,1737810633130,-500.0,0.00016574,2]
[350354780,1737810633140,-500.0,0.00016574,2]
[350354781,1737810633150,-502.98215513,0.00016574,2]
[350354782,1737810633159,-500.0,0.00016574,2]
[350354783,1737810633169,-420.03952231,0.00016574,2]
[350354784,1737810633178,-500.0,0.00016574,2]
[350354785,1737810633187,-500.0,0.00016574,2]
[350354786,1737810633197,-500.0,0.00016574,2]
[350354787,1737810633206,-500.0,0.00016574,2]
[350354788,1737810633215,-500.0,0.00016574,2]
[350354789,1737810633225,-500.0,0.00016574,2]
[350354790,1737810633234,-500.0,0.00016574,2]
[350354791,1737810633243,-500.0,0.00016574,2]
[350354792,1737810633252,-500.0,0.00016574,2]
[350354793,1737810633262,-500.0,0.00016574,2]
[350354794,1737810633271,-500.0,0.00016574,2]
[350354795,1737810633281,-500.0,0.00016574,2]
[350354796,1737810633290,-500.0,0.00016574,2]
[350354797,1737810633299,-500.0,0.00016574,2]
[350354798,1737810633309,-500.0,0.00016574,2]
[350354799,1737810633318,-500.0,0.00016574,2]
[350354800,1737810633327,-500.0,0.00016574,2]
[350354801,1737810633336,-500.0,0.00016574,2]
[350354802,1737810633347,-500.0,0.00016574,2]
[350354803,1737810633356,-500.0,0.00016574,2]
[350354804,1737810633366,-500.0,0.00016574,2]
[350354805,1737810633375,-500.0,0.00016574,2]
[350354806,1737810633384,-500.0,0.00016574,2]
[350354807,1737810633393,-895.27415269,0.00016626,2]
[350354808,1737810633403,-500.0,0.0001671,2]
[350354809,1737810633412,-500.0,0.0001671,2]
[350354810,1737810633422,-588.89,0.0001671,2]
[350354811,1737810633431,-500.0,0.00016711,2]
[350354812,1737810633440,-500.0,0.00016711,2]
[350354813,1737810633449,-500.0,0.00016711,2]
[350354814,1737810633458,-500.0,0.00016711,2]
[350354815,1737810633468,-500.0,0.00016711,2]
[350354816,1737810633477,-500.0,0.00016711,2]
[350354817,1737810633486,-500.0,0.00016711,2]
[350354818,1737810633495,-392.18,0.00016711,2]
[350354819,1737810633505,-500.0,0.00016711,2]
[350354820,1737810633514,-500.0,0.00016711,2]
[350354821,1737810633523,-584.53069339,0.00016711,2]
[350354822,1737810633533,-500.0,0.00016711,2]
[350354823,1737810633542,-500.0,0.00016711,2]
[350354824,1737810633551,-500.0,0.00016711,2]
[350354825,1737810633561,-500.0,0.00016711,2]
[350354826,1737810633570,-500.0,0.00016711,2]
[350354827,1737810633579,-500.0,0.00016711,2]
[350354828,1737810633589,-500.0,0.00016711,2]
[350354829,1737810633599,-500.0,0.00016711,2]
[350354830,1737810633608,-500.0,0.00016711,2]
[350354831,1737810633618,-500.0,0.00016711,2]
[350354832,1737810633627,-500.0,0.00016711,2]
[350354833,1737810633637,-500.0,0.00016711,2]
[350354834,1737810633646,-500.0,0.00016711,2]
[350354835,1737810633655,-500.0,0.00016711,2]
[350354836,1737810633666,-500.0,0.00016711,2]
[350354837,1737810633675,-500.0,0.00016711,2]
[350354838,1737810633684,-500.0,0.00016711,2]
[350354839,1737810633698,-500.0,0.00016711,2]
[350354840,1737810633710,-513.2413574,0.00016711,2]
[350354841,1737810633727,-500.0,0.00016711,2]
[350354842,1737810633736,-500.0,0.00016711,2]
[350354843,1737810633746,-1903.80379298,0.00016821,2]
[350354844,1737810633755,-1903.80379299,0.00016821,2]
[350354845,1737810633764,-500.0,0.00016847,2]
[350354846,1737810633774,-500.0,0.00016847,2]
[350354847,1737810633783,-500.0,0.00016848,2]
[350354848,1737810633793,-500.0,0.00016848,2]
[350354849,1737810633803,-500.0,0.00016848,2]
[350354850,1737810633812,-500.0,0.00016848,2]
[350354851,1737810633822,-500.0,0.00016848,2]
[350354852,1737810633832,-500.0,0.00016848,2]
[350354853,1737810633842,-500.0,0.00016848,2]
[350354854,1737810633851,-500.0,0.00016848,2]
[350354855,1737810633861,-500.0,0.00016848,2]
[350354856,1737810633871,-205.61619387,0.000169,2]
[350354857,1737810633880,-161.94,0.00016939,2]
[350354858,1737810633890,-161.94,0.0001696,2]
[350354859,1737810633899,-161.94,0.00016981,2]
[350354860,1737810633909,-448.07,0.00016984,2]
[350354861,1737810633918,-176.22,0.00016984,2]
[350354862,1737810633927,-500.0,0.00016985,2]
[350354863,1737810633937,-600.0,0.00017,2]
[350354864,1737810633946,-161.94,0.00017002,2]
[350354865,1737810633957,-161.94,0.00017023,2]
[350354866,1737810633966,-205.61619387,0.0001715,2]
[350354867,1737810633975,-1866.6954,0.00017156,2]
[350354868,1737810633985,-205.61619387,0.000174,2]
[350354869,1737810633994,-500.0,0.00017531,2]
[350354870,1737810634004,-500.0,0.00017531,2]
[350354871,1737810634013,-500.0,0.00017531,2]
[350354872,1737810634022,-500.0,0.00017531,2]
[350354873,1737810634032,-435.16922819,0.00017531,2]
[350354874,1737810634041,-500.0,0.00017531,2]
[350354875,1737810634050,-500.0,0.00017531,2]
[350354876,1737810634059,-500.0,0.00017531,2]
[350354877,1737810634068,-500.0,0.00017531,2]
[350354878,1737810634078,-327.74713642,0.00017531,2]
[350354879,1737810634090,-524.25767423,0.00017531,2]
[350354880,1737810634099,-500.0,0.00017531,2]
[350354881,1737810634108,-500.0,0.00017531,2]
[350354882,1737810634117,-500.0,0.00017531,2]
[350354883,1737810634127,-500.0,0.00017531,2]
[350354884,1737810634136,-500.0,0.00017531,2]
[350354885,1737810634145,-500.0,0.00017531,2]
[350354886,1737810634155,-500.0,0.00017531,2]
[350354887,1737810634163,-500.0,0.00017531,2]
[350354888,1737810634173,-500.0,0.00017531,2]
[350354889,1737810634182,-509.13468608,0.00017531,2]
[350354890,1737810634191,-500.0,0.00017531,2]
[350354891,1737810634200,-500.0,0.00017531,2]
[350354892,1737810634210,-507.01216392,0.00017531,2]
[350354893,1737810634219,-500.0,0.00017531,2]
[350354894,1737810634228,-500.0,0.00017531,2]
[350354895,1737810634237,-508.22363121,0.00017531,2]
[350354896,1737810634246,-500.0,0.00017531,2]
[350354897,1737810634255,-500.0,0.00017531,2]
[350354898,1737810634264,-500.0,0.00017531,2]
[350354899,1737810634274,-500.0,0.00017531,2]
[350354900,1737810634283,-500.0,0.00017531,2]
[350354901,1737810634291,-500.0,0.00017531,2]
[350354902,1737810634300,-556.66641326,0.00017531,2]
[350354903,1737810634309,-500.0,0.00017531,2]
[350354904,1737810634318,-500.0,0.00017531,2]
[350354905,1737810634326,-504.36495375,0.00017531,2]
[350354906,1737810634335,-500.0,0.00017531,2]
[350354907,1737810634344,-504.21320452,0.00017531,2]
[350354908,1737810634354,-500.0,0.00017531,2]
[350354909,1737810634364,-419.03340695,0.00017531,2]
[350354910,1737810634373,-500.0,0.00017531,2]
[350354911,1737810634382,-500.0,0.00017531,2]
[350354912,1737810634392,-509.50403772,0.00017531,2]
[350354913,1737810634401,-500.0,0.00017531,2]
[350354914,1737810634410,-502.66325172,0.00017531,2]
[350354915,1737810634420,-500.0,0.00017531,2]
[350354916,1737810634429,-500.0,0.00017531,2]
[350354917,1737810634438,-503.21581185,0.00017531,2]
[350354918,1737810634448,-500.0,0.00017531,2]
[350354919,1737810634457,-500.0,0.00017531,2]
[350354920,1737810634466,-500.0,0.00017531,2]
[350354921,1737810634475,-500.0,0.00017531,2]
[350354922,1737810634485,-500.0,0.00017531,2]
[350354923,1737810634494,-500.0,0.00017531,2]
[350354924,1737810634503,-500.0,0.00017531,2]
[350354925,1737810634512,-500.0,0.00017531,2]
[350354926,1737810634520,-500.0,0.00017531,2]
[350354927,1737810634530,-500.0,0.00017531,2]
[350354928,1737810634539,-500.0,0.00017531,2]
[350354929,1737810634548,-500.0,0.00017531,2]
[350354930,1737810634556,-500.0,0.00017531,2]
[350354931,1737810634565,-500.0,0.00017531,2]
[350354932,1737810634574,-524.10212941,0.00017531,2]
[350354933,1737810634582,-500.0,0.00017531,2]
[350354934,1737810634591,-156.30572689,0.00017531,2]
[350354935,1737810634601,-500.0,0.00017531,2]
[350354936,1737810634609,-510.13466059,0.00017531,2]
[350354937,1737810634618,-500.0,0.00017531,2]
[350354938,1737810634627,-500.0,0.00017531,2]
[350354939,1737810634636,-500.0,0.00017531,2]
[350354940,1737810634645,-500.0,0.00017531,2]
[350354941,1737810634655,-392.64,0.00017531,2]
[350354942,1737810634664,-500.0,0.00017531,2]
[350354943,1737810634673,-500.0,0.00017531,2]
[350354944,1737810634682,-500.0,0.00017531,2]
[350354945,1737810634691,-500.0,0.00017531,2]
[350354946,1737810634701,-500.0,0.00017531,2]
[350354947,1737810634710,-500.0,0.00017531,2]
[350354948,1737810634719,-719.94,0.00017531,2]
[350354949,1737810634728,-500.0,0.00017531,2]
[350354950,1737810634738,-500.0,0.00017531,2]
[350354951,1737810634747,-500.0,0.00017531,2]
[350354952,1737810634756,-500.0,0.00017531,2]
[350354953,1737810634765,-500.0,0.00017531,2]
[350354954,1737810634774,-500.0,0.00017531,2]
[350354955,1737810634783,-500.0,0.00017531,2]